[Event "Early-Titled-Tuesday-Blitz-January-23-2024"]
[Site "Chess.com"]
[Date "2024.01.23"]
[Round "4"]
[White "maurovargas01"]
[Black "01Roman"]
[Result "0-1"]
[WhiteElo "1853"]
[BlackElo "2465"]
[TimeControl "180+1"]
[EndTime "8:38:15 PST"]
[Termination "01Roman won on time"]

1. e4 {[%clk 0:03:00]} 1... Nf6 {[%clk 0:02:53]} 2. Nc3 {[%clk 0:02:58.5]} 2...
e5 {[%clk 0:02:51.4]} 3. Bc4 {[%clk 0:02:56.8]} 3... Nxe4 {[%clk 0:02:45.9]} 4.
Qe2 {[%clk 0:02:48.4]} 4... Nxc3 {[%clk 0:02:42.9]} 5. Qxe5+ {[%clk 0:02:43.5]}
5... Qe7 {[%clk 0:02:41.6]} 6. Qxe7+ {[%clk 0:02:41.7]} 6... Bxe7 {[%clk
0:02:42.5]} 7. dxc3 {[%clk 0:02:35.8]} 7... c6 {[%clk 0:02:39.4]} 8. Nf3 {[%clk
0:02:33.9]} 8... d5 {[%clk 0:02:23.1]} 9. Bd3 {[%clk 0:02:32.2]} 9... h6 {[%clk
0:02:12.8]} 10. Bf4 {[%clk 0:02:31.6]} 10... Be6 {[%clk 0:02:09.8]} 11. O-O
{[%clk 0:02:13.9]} 11... Nd7 {[%clk 0:02:06.9]} 12. Rfe1 {[%clk 0:02:13.5]}
12... O-O {[%clk 0:02:04.3]} 13. Nd4 {[%clk 0:02:11.1]} 13... Bc5 {[%clk
0:01:56.1]} 14. Nxe6 {[%clk 0:02:09.2]} 14... fxe6 {[%clk 0:01:57]} 15. Bg3
{[%clk 0:01:59.6]} 15... e5 {[%clk 0:01:55.1]} 16. Bg6 {[%clk 0:01:07.2]} 16...
Rf6 {[%clk 0:01:51.3]} 17. Bh5 {[%clk 0:01:05.9]} 17... Raf8 {[%clk 0:01:49.2]}
18. Re2 {[%clk 0:00:57.9]} 18... e4 {[%clk 0:01:44.9]} 19. Bg4 {[%clk
0:00:40.6]} 19... Nb6 {[%clk 0:01:39.7]} 20. a4 {[%clk 0:00:37.5]} 20... a5
{[%clk 0:01:30.2]} 21. Rb1 {[%clk 0:00:29.8]} 21... Bd6 {[%clk 0:00:42.9]} 22.
Bh4 {[%clk 0:00:21.2]} 22... g5 {[%clk 0:00:41.4]} 23. Bg3 {[%clk 0:00:20.4]}
23... Bxg3 {[%clk 0:00:41.2]} 24. hxg3 {[%clk 0:00:20.5]} 24... Nxa4 {[%clk
0:00:42.1]} 25. f3 {[%clk 0:00:11.2]} 25... exf3 {[%clk 0:00:40.4]} 26. gxf3
{[%clk 0:00:09.4]} 26... Nc5 {[%clk 0:00:37.7]} 27. Re7 {[%clk 0:00:08.8]} 27...
R6f7 {[%clk 0:00:36.9]} 28. Rbe1 {[%clk 0:00:07.8]} 28... Rxe7 {[%clk
0:00:36.7]} 29. Rxe7 {[%clk 0:00:06.9]} 29... Rf7 {[%clk 0:00:37.3]} 30. Re8+
{[%clk 0:00:04.5]} 30... Kg7 {[%clk 0:00:37.2]} 31. Bh5 {[%clk 0:00:03.8]} 31...
Rc7 {[%clk 0:00:33.9]} 0-1

[Event "Early-Titled-Tuesday-Blitz-January-23-2024"]
[Site "Chess.com"]
[Date "2024.01.23"]
[Round "4"]
[White "Predo63"]
[Black "Kapitan_Bayan"]
[Result "1-0"]
[WhiteElo "2480"]
[BlackElo "2324"]
[TimeControl "180+1"]
[EndTime "8:38:15 PST"]
[Termination "Predo63 won by resignation"]

1. d4 {[%clk 0:03:00.9]} 1... d5 {[%clk 0:02:58.6]} 2. Bf4 {[%clk 0:03:01]} 2...
Nf6 {[%clk 0:02:58.1]} 3. e3 {[%clk 0:03:01.3]} 3... c5 {[%clk 0:02:57.4]} 4. c3
{[%clk 0:03:01.1]} 4... Nc6 {[%clk 0:02:56.9]} 5. Nd2 {[%clk 0:03:01.2]} 5...
Bf5 {[%clk 0:02:50.3]} 6. Ngf3 {[%clk 0:03:00.9]} 6... h6 {[%clk 0:02:42.7]} 7.
h3 {[%clk 0:02:59.9]} 7... e6 {[%clk 0:02:39]} 8. Be2 {[%clk 0:03:00.2]} 8...
Bd6 {[%clk 0:02:31.5]} 9. Bxd6 {[%clk 0:03:00]} 9... Qxd6 {[%clk 0:02:32.4]} 10.
O-O {[%clk 0:03:00.4]} 10... O-O {[%clk 0:02:20.5]} 11. Bb5 {[%clk 0:02:59.7]}
11... Nd7 {[%clk 0:02:11.7]} 12. a3 {[%clk 0:02:56.6]} 12... a6 {[%clk
0:02:10.2]} 13. Bxc6 {[%clk 0:02:56.7]} 13... Qxc6 {[%clk 0:02:11.1]} 14. b4
{[%clk 0:02:56.1]} 14... c4 {[%clk 0:02:10.4]} 15. a4 {[%clk 0:02:56]} 15... b5
{[%clk 0:02:09.9]} 16. a5 {[%clk 0:02:56.1]} 16... f6 {[%clk 0:02:07.2]} 17. Re1
{[%clk 0:02:55.8]} 17... e5 {[%clk 0:02:05.7]} 18. Qe2 {[%clk 0:02:53.2]} 18...
e4 {[%clk 0:02:02.9]} 19. Nh2 {[%clk 0:02:52.4]} 19... Be6 {[%clk 0:02:01.5]}
20. f3 {[%clk 0:02:47.4]} 20... f5 {[%clk 0:02:00.9]} 21. fxe4 {[%clk
0:02:47.2]} 21... fxe4 {[%clk 0:02:00.5]} 22. Rf1 {[%clk 0:02:47.1]} 22... Nf6
{[%clk 0:01:53.5]} 23. Rf2 {[%clk 0:02:45.9]} 23... Rf7 {[%clk 0:01:48.1]} 24.
Raf1 {[%clk 0:02:45.5]} 24... Raf8 {[%clk 0:01:47.4]} 25. Rf4 {[%clk 0:02:41.4]}
25... Qd7 {[%clk 0:01:42.5]} 26. g4 {[%clk 0:02:33.5]} 26... Nh7 {[%clk
0:01:40.9]} 27. Rxf7 {[%clk 0:02:32.9]} 27... Rxf7 {[%clk 0:01:40.5]} 28. Rxf7
{[%clk 0:02:33]} 28... Qxf7 {[%clk 0:01:40.3]} 29. Qf2 {[%clk 0:02:32.1]} 29...
Ng5 {[%clk 0:01:38.8]} 30. Qxf7+ {[%clk 0:02:30.2]} 30... Kxf7 {[%clk
0:01:38.7]} 31. Kg2 {[%clk 0:02:30.4]} 31... Nh7 {[%clk 0:01:36.9]} 32. h4
{[%clk 0:02:27.5]} 32... Nf6 {[%clk 0:01:34.4]} 33. Kg3 {[%clk 0:02:28]} 33...
Nd7 {[%clk 0:01:22.7]} 34. Kf4 {[%clk 0:02:22.5]} 34... Nf8 {[%clk 0:01:14.8]}
35. Ndf1 {[%clk 0:01:51.6]} 35... Kf6 {[%clk 0:01:07.6]} 36. g5+ {[%clk
0:01:49.4]} 36... hxg5+ {[%clk 0:01:04.2]} 37. hxg5+ {[%clk 0:01:49.5]} 37...
Ke7 {[%clk 0:01:01.5]} 38. Ng4 {[%clk 0:01:39.5]} 38... Ng6+ {[%clk 0:00:58.7]}
39. Kg3 {[%clk 0:01:39.4]} 39... Kf7 {[%clk 0:00:40.9]} 40. Ne5+ {[%clk
0:01:28.9]} 40... Nxe5 {[%clk 0:00:34.4]} 41. dxe5 {[%clk 0:01:29.8]} 41... Kg6
{[%clk 0:00:31.7]} 42. Kf4 {[%clk 0:01:30]} 42... Kf7 {[%clk 0:00:31.2]} 43. Ng3
{[%clk 0:01:30]} 43... g6 {[%clk 0:00:31.3]} 44. Ne2 {[%clk 0:01:29.6]} 44...
Bd7 {[%clk 0:00:28.3]} 45. Nd4 {[%clk 0:01:29.3]} 45... Ke7 {[%clk 0:00:28.6]}
46. Ne2 {[%clk 0:01:24.7]} 46... Be6 {[%clk 0:00:28.6]} 47. Kg3 {[%clk
0:01:24.3]} 47... Bf5 {[%clk 0:00:27.1]} 48. Nf4 {[%clk 0:01:24.5]} 48... Bc8
{[%clk 0:00:21.2]} 49. Nxd5+ {[%clk 0:01:16.7]} 49... Ke6 {[%clk 0:00:21.5]} 50.
Nf4+ {[%clk 0:01:16.5]} 50... Kxe5 {[%clk 0:00:20.7]} 51. Nxg6+ {[%clk
0:01:16.4]} 51... Ke6 {[%clk 0:00:19.7]} 52. Kf4 {[%clk 0:01:15.7]} 52... Bb7
{[%clk 0:00:19.2]} 53. Ne5 {[%clk 0:01:15.8]} 53... Bd5 {[%clk 0:00:18.2]} 54.
Ng4 {[%clk 0:01:14.5]} 54... Bc6 {[%clk 0:00:15.1]} 55. Nf6 {[%clk 0:01:14.7]}
55... Kf7 {[%clk 0:00:13.5]} 56. Nxe4 {[%clk 0:01:13.2]} 56... Kg6 {[%clk
0:00:11.6]} 57. Nc5 {[%clk 0:01:13.2]} 1-0

[Event "Early-Titled-Tuesday-Blitz-January-23-2024"]
[Site "Chess.com"]
[Date "2024.01.23"]
[Round "4"]
[White "DrCeltic"]
[Black "falzehope0"]
[Result "1-0"]
[WhiteElo "2617"]
[BlackElo "2419"]
[TimeControl "180+1"]
[EndTime "8:38:16 PST"]
[Termination "DrCeltic won by checkmate"]

1. e4 {[%clk 0:03:00]} 1... d6 {[%clk 0:02:52.6]} 2. d4 {[%clk 0:03:00.2]} 2...
Nf6 {[%clk 0:02:52.4]} 3. Nc3 {[%clk 0:03:00.3]} 3... Nbd7 {[%clk 0:02:52.8]} 4.
Nf3 {[%clk 0:03:00.6]} 4... e5 {[%clk 0:02:53.1]} 5. Bc4 {[%clk 0:03:01.1]} 5...
Be7 {[%clk 0:02:53.4]} 6. O-O {[%clk 0:03:01]} 6... c6 {[%clk 0:02:53.1]} 7. a4
{[%clk 0:03:01.4]} 7... Qc7 {[%clk 0:02:52.5]} 8. Re1 {[%clk 0:03:00.6]} 8... h6
{[%clk 0:02:52.4]} 9. a5 {[%clk 0:02:56.1]} 9... Nf8 {[%clk 0:02:49.4]} 10. d5
{[%clk 0:02:55.4]} 10... c5 {[%clk 0:02:49]} 11. a6 {[%clk 0:02:53.6]} 11... b6
{[%clk 0:02:48.6]} 12. Bb5+ {[%clk 0:02:53.7]} 12... Bd7 {[%clk 0:02:48]} 13.
Nd2 {[%clk 0:02:49.7]} 13... g5 {[%clk 0:02:38.6]} 14. Nc4 {[%clk 0:02:46.3]}
14... Ng6 {[%clk 0:02:35.9]} 15. Be3 {[%clk 0:02:26.5]} 15... Bxb5 {[%clk
0:02:27.3]} 16. Nxb5 {[%clk 0:02:26.3]} 16... Qd7 {[%clk 0:02:27.4]} 17. Qd3
{[%clk 0:02:12.5]} 17... Nf4 {[%clk 0:02:19.5]} 18. Qf1 {[%clk 0:01:48]} 18...
Kf8 {[%clk 0:01:52.7]} 19. Nd2 {[%clk 0:01:33.5]} 19... Ng4 {[%clk 0:01:44.9]}
20. c3 {[%clk 0:01:31.4]} 20... Rg8 {[%clk 0:01:31.6]} 21. b4 {[%clk 0:01:29.3]}
21... Rb8 {[%clk 0:01:16.6]} 22. Reb1 {[%clk 0:01:23]} 22... Rc8 {[%clk
0:00:52.6]} 23. bxc5 {[%clk 0:01:20.5]} 23... dxc5 {[%clk 0:00:53.5]} 24. Nc4
{[%clk 0:01:15.5]} 24... Nf6 {[%clk 0:00:45.1]} 25. Nxe5 {[%clk 0:01:13.9]}
25... Qe8 {[%clk 0:00:34.3]} 26. Nc6 {[%clk 0:01:13.8]} 26... Rxc6 {[%clk
0:00:30.8]} 27. dxc6 {[%clk 0:01:13.7]} 27... Qxc6 {[%clk 0:00:31.7]} 28. Nxa7
{[%clk 0:01:11.2]} 28... Qxe4 {[%clk 0:00:31]} 29. Nc8 {[%clk 0:01:06.5]} 29...
Kg7 {[%clk 0:00:24.5]} 30. Bxf4 {[%clk 0:01:01.9]} 30... gxf4 {[%clk 0:00:22]}
31. Re1 {[%clk 0:01:01.4]} 31... Qa8 {[%clk 0:00:12]} 32. Nxe7 {[%clk
0:01:01.5]} 32... Rd8 {[%clk 0:00:10.5]} 33. a7 {[%clk 0:00:58.7]} 33... Kh8
{[%clk 0:00:10.3]} 34. Nf5 {[%clk 0:00:57]} 34... Rg8 {[%clk 0:00:09.3]} 35. g3
{[%clk 0:00:56.7]} 35... Nh5 {[%clk 0:00:07.9]} 36. Nxh6 {[%clk 0:00:55.1]}
36... fxg3 {[%clk 0:00:07.1]} 37. Nxg8 {[%clk 0:00:50.5]} 37... gxh2+ {[%clk
0:00:06.7]} 38. Kxh2 {[%clk 0:00:49.1]} 38... Kxg8 {[%clk 0:00:05.7]} 39. Qg2+
{[%clk 0:00:48.9]} 39... Qxg2+ {[%clk 0:00:05.6]} 40. Kxg2 {[%clk 0:00:49.8]}
40... Nf4+ {[%clk 0:00:05.4]} 41. Kf3 {[%clk 0:00:50.5]} 41... Kg7 {[%clk
0:00:05.5]} 42. Kxf4 {[%clk 0:00:50.1]} 42... Kf6 {[%clk 0:00:06.4]} 43. a8=Q
{[%clk 0:00:49.5]} 43... b5 {[%clk 0:00:06.9]} 44. Qc6+ {[%clk 0:00:49.2]} 44...
Kg7 {[%clk 0:00:06.5]} 45. Rg1+ {[%clk 0:00:49.3]} 45... Kf8 {[%clk 0:00:06.9]}
46. Ra8+ {[%clk 0:00:48]} 46... Ke7 {[%clk 0:00:06.8]} 47. Re8# {[%clk
0:00:47.7]} 1-0

[Event "Early-Titled-Tuesday-Blitz-January-23-2024"]
[Site "Chess.com"]
[Date "2024.01.23"]
[Round "4"]
[White "Valy02chess"]
[Black "publicaccountcze"]
[Result "0-1"]
[WhiteElo "2137"]
[BlackElo "2316"]
[TimeControl "180+1"]
[EndTime "8:38:16 PST"]
[Termination "publicaccountcze won on time"]

1. e4 {[%clk 0:03:00.9]} 1... c5 {[%clk 0:02:59.3]} 2. Nf3 {[%clk 0:02:58.8]}
2... e6 {[%clk 0:02:57.2]} 3. d4 {[%clk 0:02:45.9]} 3... cxd4 {[%clk 0:02:58.1]}
4. Nxd4 {[%clk 0:02:46.1]} 4... a6 {[%clk 0:02:58.1]} 5. Nc3 {[%clk 0:02:41]}
5... Qc7 {[%clk 0:02:57.5]} 6. Bd3 {[%clk 0:02:30.9]} 6... Nf6 {[%clk
0:02:53.8]} 7. O-O {[%clk 0:02:27.9]} 7... Bc5 {[%clk 0:02:53.1]} 8. Nb3 {[%clk
0:02:27.8]} 8... Ba7 {[%clk 0:02:53.6]} 9. Qe2 {[%clk 0:02:25.7]} 9... O-O
{[%clk 0:02:53.6]} 10. Be3 {[%clk 0:02:23.2]} 10... Bxe3 {[%clk 0:02:53]} 11.
Qxe3 {[%clk 0:02:23.1]} 11... Nc6 {[%clk 0:02:51.7]} 12. f4 {[%clk 0:02:10]}
12... d6 {[%clk 0:02:44.7]} 13. Rf3 {[%clk 0:01:38.9]} 13... b5 {[%clk
0:02:39.4]} 14. Re1 {[%clk 0:01:29.4]} 14... Bb7 {[%clk 0:02:38]} 15. Rh3 {[%clk
0:01:26.9]} 15... e5 {[%clk 0:02:28.4]} 16. Nd5 {[%clk 0:01:23.7]} 16... Nxd5
{[%clk 0:02:27.6]} 17. exd5 {[%clk 0:01:24.1]} 17... f5 {[%clk 0:02:07.4]} 18.
dxc6 {[%clk 0:01:20.1]} 18... Qxc6 {[%clk 0:02:07.2]} 19. Bf1 {[%clk 0:00:52.3]}
19... Rae8 {[%clk 0:01:59.9]} 20. fxe5 {[%clk 0:00:46]} 20... dxe5 {[%clk
0:01:37.4]} 21. Qc3 {[%clk 0:00:39.3]} 21... f4 {[%clk 0:01:20.3]} 22. Qxc6
{[%clk 0:00:35.4]} 22... Bxc6 {[%clk 0:01:21.2]} 23. Nd2 {[%clk 0:00:18.1]}
23... e4 {[%clk 0:01:20.2]} 24. Rh5 {[%clk 0:00:16.4]} 24... f3 {[%clk
0:00:45.8]} 25. gxf3 {[%clk 0:00:14.9]} 25... exf3 {[%clk 0:00:44.6]} 26. Kf2
{[%clk 0:00:04.5]} 26... Rxe1 {[%clk 0:00:39.5]} 27. Kxe1 {[%clk 0:00:04.3]}
27... f2+ {[%clk 0:00:38.4]} 28. Ke2 {[%clk 0:00:04.8]} 28... Bd7 {[%clk
0:00:36.8]} 29. h3 {[%clk 0:00:03.5]} 29... b4 {[%clk 0:00:20.6]} 30. Ne4 {[%clk
0:00:03.4]} 30... Bb5+ {[%clk 0:00:20.7]} 0-1

[Event "Early-Titled-Tuesday-Blitz-January-23-2024"]
[Site "Chess.com"]
[Date "2024.01.23"]
[Round "4"]
[White "Piotrek1979"]
[Black "HATilay"]
[Result "0-1"]
[WhiteElo "2398"]
[BlackElo "2586"]
[TimeControl "180+1"]
[EndTime "8:38:21 PST"]
[Termination "HATilay won by resignation"]

1. c4 {[%clk 0:03:00.9]} 1... e5 {[%clk 0:02:51]} 2. d3 {[%clk 0:03:00]} 2...
Nf6 {[%clk 0:02:48.8]} 3. Nf3 {[%clk 0:03:00]} 3... Nc6 {[%clk 0:02:48.7]} 4. a3
{[%clk 0:02:59.6]} 4... d5 {[%clk 0:02:49.2]} 5. cxd5 {[%clk 0:02:59.5]} 5...
Nxd5 {[%clk 0:02:50.1]} 6. e3 {[%clk 0:02:58.3]} 6... Be7 {[%clk 0:02:50.5]} 7.
b4 {[%clk 0:02:57.3]} 7... O-O {[%clk 0:02:51.4]} 8. Bb2 {[%clk 0:02:56.6]} 8...
Bf6 {[%clk 0:02:50.4]} 9. Qc2 {[%clk 0:02:55.6]} 9... Re8 {[%clk 0:02:48.5]} 10.
Be2 {[%clk 0:02:55.6]} 10... a5 {[%clk 0:02:48.3]} 11. b5 {[%clk 0:02:54.9]}
11... Na7 {[%clk 0:02:49]} 12. Nbd2 {[%clk 0:02:35.3]} 12... Nxb5 {[%clk
0:02:26.7]} 13. d4 {[%clk 0:02:34.7]} 13... exd4 {[%clk 0:02:27.2]} 14. Bxb5
{[%clk 0:02:29.9]} 14... dxe3 {[%clk 0:02:27.8]} 15. Bxe8 {[%clk 0:01:46.6]}
15... exd2+ {[%clk 0:02:21.9]} 16. Qxd2 {[%clk 0:01:37.4]} 16... Qxe8+ {[%clk
0:02:21.3]} 17. Kd1 {[%clk 0:00:45.2]} 17... Bf5 {[%clk 0:01:15.3]} 18. Nd4
{[%clk 0:00:33.7]} 18... Qa4+ {[%clk 0:01:08.9]} 19. Kc1 {[%clk 0:00:33.1]}
19... Bg6 {[%clk 0:00:49.3]} 20. Re1 {[%clk 0:00:24.8]} 20... c5 {[%clk
0:00:48.9]} 21. Nc2 {[%clk 0:00:24.3]} 21... Bxb2+ {[%clk 0:00:37.7]} 22. Kxb2
{[%clk 0:00:25.2]} 22... c4 {[%clk 0:00:37.3]} 23. Kc1 {[%clk 0:00:20.1]} 23...
c3 {[%clk 0:00:35.6]} 24. Qe2 {[%clk 0:00:20.2]} 24... h6 {[%clk 0:00:24.3]} 25.
Rd1 {[%clk 0:00:20.4]} 25... Re8 {[%clk 0:00:18.7]} 26. Ne3 {[%clk 0:00:12.7]}
26... Nxe3 {[%clk 0:00:15.2]} 27. fxe3 {[%clk 0:00:13.6]} 27... Rxe3 {[%clk
0:00:14.8]} 28. Qf2 {[%clk 0:00:12.7]} 28... Qe4 {[%clk 0:00:10]} 29. a4 {[%clk
0:00:06.6]} 29... Re2 {[%clk 0:00:10.1]} 30. Rd8+ {[%clk 0:00:05.7]} 30... Kh7
{[%clk 0:00:09.6]} 31. Qxe2 {[%clk 0:00:05.3]} 31... Qxe2 {[%clk 0:00:09.5]} 0-1

[Event "Early-Titled-Tuesday-Blitz-January-23-2024"]
[Site "Chess.com"]
[Date "2024.01.23"]
[Round "4"]
[White "snowlord"]
[Black "Sibelephant"]
[Result "0-1"]
[WhiteElo "2867"]
[BlackElo "3083"]
[TimeControl "180+1"]
[EndTime "8:38:24 PST"]
[Termination "Sibelephant won on time"]

1. d4 {[%clk 0:02:00.5]} 1... Nf6 {[%clk 0:02:53.3]} 2. c4 {[%clk 0:02:00.4]}
2... e6 {[%clk 0:02:53]} 3. Bf4 {[%clk 0:02:00.7]} 3... Bb4+ {[%clk 0:02:45.3]}
4. Nd2 {[%clk 0:02:00.3]} 4... c5 {[%clk 0:02:40.1]} 5. dxc5 {[%clk 0:01:49.6]}
5... Bxc5 {[%clk 0:02:39.6]} 6. e3 {[%clk 0:01:44.9]} 6... O-O {[%clk
0:02:36.5]} 7. Ngf3 {[%clk 0:01:45.2]} 7... b6 {[%clk 0:02:34.6]} 8. Qc2 {[%clk
0:01:25.7]} 8... Bb7 {[%clk 0:02:34.2]} 9. Bd3 {[%clk 0:01:25.8]} 9... Nc6
{[%clk 0:01:45.6]} 10. a3 {[%clk 0:01:25.4]} 10... Be7 {[%clk 0:01:28.6]} 11.
O-O-O {[%clk 0:01:21.6]} 11... d5 {[%clk 0:01:24.1]} 12. Kb1 {[%clk 0:01:21.7]}
12... Rc8 {[%clk 0:01:23.5]} 13. h4 {[%clk 0:01:03.8]} 13... Qe8 {[%clk
0:01:12.6]} 14. Qa4 {[%clk 0:00:45.7]} 14... a6 {[%clk 0:01:12.6]} 15. cxd5
{[%clk 0:00:39.2]} 15... b5 {[%clk 0:01:12.4]} 16. Qb3 {[%clk 0:00:18.6]} 16...
Na5 {[%clk 0:01:10.1]} 17. Qa2 {[%clk 0:00:17.9]} 17... Bxd5 {[%clk 0:01:09.2]}
18. b3 {[%clk 0:00:17.9]} 18... Rc3 {[%clk 0:00:51.6]} 19. Bc2 {[%clk
0:00:17.8]} 19... Qa8 {[%clk 0:00:50.7]} 20. Be5 {[%clk 0:00:17]} 20... Rcc8
{[%clk 0:00:50.7]} 21. Qb2 {[%clk 0:00:16.9]} 21... Nc6 {[%clk 0:00:46.2]} 22.
Rc1 {[%clk 0:00:08.3]} 22... Nxe5 {[%clk 0:00:41.3]} 23. Nxe5 {[%clk 0:00:09.2]}
23... Rfd8 {[%clk 0:00:39.9]} 24. Ndf3 {[%clk 0:00:05.8]} 24... Ne4 {[%clk
0:00:35.7]} 25. Ng5 {[%clk 0:00:06.1]} 25... Nd2+ {[%clk 0:00:18.4]} 26. Ka1
{[%clk 0:00:05.7]} 26... Rxc2 {[%clk 0:00:14.2]} 27. Qxc2 {[%clk 0:00:06.6]}
27... Nxb3+ {[%clk 0:00:14.5]} 28. Kb1 {[%clk 0:00:07.3]} 28... f5 {[%clk
0:00:14.2]} 29. Rhd1 {[%clk 0:00:06.4]} 29... Nxc1 {[%clk 0:00:13.7]} 30. Rxc1
{[%clk 0:00:01.1]} 30... Bxa3 {[%clk 0:00:13.5]} 0-1

[Event "Early-Titled-Tuesday-Blitz-January-23-2024"]
[Site "Chess.com"]
[Date "2024.01.23"]
[Round "4"]
[White "JonasEilenberg"]
[Black "WhiteKnight2612"]
[Result "0-1"]
[WhiteElo "2567"]
[BlackElo "2864"]
[TimeControl "180+1"]
[EndTime "8:38:24 PST"]
[Termination "WhiteKnight2612 won by resignation"]

1. d4 {[%clk 0:02:28.4]} 1... Nf6 {[%clk 0:02:50.6]} 2. Bf4 {[%clk 0:02:28.7]}
2... g6 {[%clk 0:02:49.2]} 3. Nf3 {[%clk 0:02:27.5]} 3... Bg7 {[%clk 0:02:49.7]}
4. e3 {[%clk 0:02:28.1]} 4... O-O {[%clk 0:02:49.9]} 5. Be2 {[%clk 0:02:27.1]}
5... c5 {[%clk 0:02:50.5]} 6. O-O {[%clk 0:02:24.3]} 6... Qb6 {[%clk 0:02:50.9]}
7. Nbd2 {[%clk 0:02:22.2]} 7... Qxb2 {[%clk 0:02:48.8]} 8. Nc4 {[%clk
0:02:21.5]} 8... Qb5 {[%clk 0:02:37.3]} 9. Nfe5 {[%clk 0:02:14]} 9... d5 {[%clk
0:02:26]} 10. Nd6 {[%clk 0:01:48]} 10... Qa5 {[%clk 0:02:11.7]} 11. Nxc8 {[%clk
0:01:43.7]} 11... Rxc8 {[%clk 0:02:12.6]} 12. Rb1 {[%clk 0:01:44.3]} 12... b6
{[%clk 0:02:10.7]} 13. c4 {[%clk 0:01:42.2]} 13... cxd4 {[%clk 0:02:03.8]} 14.
exd4 {[%clk 0:01:43.1]} 14... Nc6 {[%clk 0:01:55.7]} 15. cxd5 {[%clk 0:01:43.4]}
15... Nxd5 {[%clk 0:01:51.4]} 16. Rb5 {[%clk 0:01:42.7]} 16... Nc3 {[%clk
0:01:49.4]} 17. Rxa5 {[%clk 0:01:38.1]} 17... Nxd1 {[%clk 0:01:48.7]} 18. Nxc6
{[%clk 0:01:35.1]} 18... Rxc6 {[%clk 0:01:48.4]} 19. Ra3 {[%clk 0:01:33]} 19...
Rc3 {[%clk 0:01:46.9]} 20. Rb3 {[%clk 0:01:16.5]} 20... Rxb3 {[%clk 0:01:43.7]}
21. axb3 {[%clk 0:01:17.4]} 21... Nc3 {[%clk 0:01:43.1]} 22. Bf3 {[%clk
0:01:17.7]} 22... Rd8 {[%clk 0:01:40.5]} 23. Be5 {[%clk 0:01:12.3]} 23... f6
{[%clk 0:01:32.7]} 24. Bc7 {[%clk 0:00:59.8]} 24... Rxd4 {[%clk 0:01:31.7]} 25.
Bb8 {[%clk 0:01:00.5]} 25... a5 {[%clk 0:01:29]} 26. Bc7 {[%clk 0:01:00.2]}
26... Rb4 {[%clk 0:01:28.4]} 27. Bd8 {[%clk 0:00:37.4]} 27... f5 {[%clk
0:01:16.5]} 28. Bxe7 {[%clk 0:00:31.9]} 28... Rxb3 {[%clk 0:01:16.2]} 29. h4
{[%clk 0:00:32.5]} 29... a4 {[%clk 0:01:15.2]} 30. h5 {[%clk 0:00:22]} 30... a3
{[%clk 0:01:13.2]} 31. Ra1 {[%clk 0:00:22.6]} 31... Bf8 {[%clk 0:01:04.4]} 32.
Bf6 {[%clk 0:00:17.1]} 32... Kf7 {[%clk 0:00:54.4]} 33. Bd4 {[%clk 0:00:14.6]}
33... Bc5 {[%clk 0:00:54.1]} 34. Be5 {[%clk 0:00:11.6]} 34... Ke6 {[%clk
0:00:53]} 35. Bg7 {[%clk 0:00:11]} 35... Rb1+ {[%clk 0:00:51.2]} 36. Rxb1 {[%clk
0:00:10.9]} 36... Nxb1 {[%clk 0:00:52.1]} 37. h6 {[%clk 0:00:09.2]} 37... Bd6
{[%clk 0:00:46.9]} 38. Bd1 {[%clk 0:00:09.4]} 38... Nd2 {[%clk 0:00:46.5]} 39.
Bc3 {[%clk 0:00:08.6]} 39... Bf4 {[%clk 0:00:44.2]} 40. Bb3+ {[%clk 0:00:08.9]}
40... Nxb3 {[%clk 0:00:43]} 0-1

[Event "Early-Titled-Tuesday-Blitz-January-23-2024"]
[Site "Chess.com"]
[Date "2024.01.23"]
[Round "4"]
[White "Kostukov_Alex"]
[Black "Zq1"]
[Result "0-1"]
[WhiteElo "2298"]
[BlackElo "2523"]
[TimeControl "180+1"]
[EndTime "8:38:24 PST"]
[Termination "Zq1 won on time"]

1. g3 {[%clk 0:02:59.3]} 1... d5 {[%clk 0:02:56.1]} 2. Bg2 {[%clk 0:02:58.6]}
2... c6 {[%clk 0:02:56.1]} 3. d3 {[%clk 0:02:58.9]} 3... Nf6 {[%clk 0:02:55.4]}
4. e4 {[%clk 0:02:58.9]} 4... dxe4 {[%clk 0:02:55]} 5. dxe4 {[%clk 0:02:59.1]}
5... Qxd1+ {[%clk 0:02:54.5]} 6. Kxd1 {[%clk 0:03:00]} 6... e5 {[%clk
0:02:54.3]} 7. f3 {[%clk 0:03:00.2]} 7... Bc5 {[%clk 0:02:53.2]} 8. Nd2 {[%clk
0:02:59.3]} 8... O-O {[%clk 0:02:49]} 9. a4 {[%clk 0:02:58]} 9... a5 {[%clk
0:02:48]} 10. c3 {[%clk 0:02:53.8]} 10... Na6 {[%clk 0:02:46.8]} 11. Ke2 {[%clk
0:02:51]} 11... b6 {[%clk 0:02:42.9]} 12. Nc4 {[%clk 0:02:39.2]} 12... Nd7
{[%clk 0:02:37.9]} 13. Bh3 {[%clk 0:02:14.6]} 13... Nab8 {[%clk 0:02:37.5]} 14.
Ne3 {[%clk 0:01:30.5]} 14... Ba6+ {[%clk 0:02:35.9]} 15. Kd2 {[%clk 0:01:26.2]}
15... Be7 {[%clk 0:02:31.9]} 16. Bf1 {[%clk 0:01:15.4]} 16... g6 {[%clk
0:02:25.8]} 17. Bxa6 {[%clk 0:01:12.5]} 17... Nxa6 {[%clk 0:02:25.8]} 18. Nc4
{[%clk 0:01:11]} 18... Nac5 {[%clk 0:02:16]} 19. Kc2 {[%clk 0:01:07.1]} 19...
Nxa4 {[%clk 0:02:01.2]} 20. Nxe5 {[%clk 0:00:46.7]} 20... Nxe5 {[%clk
0:01:59.6]} 21. Rxa4 {[%clk 0:00:45.4]} 21... b5 {[%clk 0:01:58]} 22. Ra1 {[%clk
0:00:43.8]} 22... a4 {[%clk 0:01:58.1]} 23. Bf4 {[%clk 0:00:38.9]} 23... Nc4
{[%clk 0:01:54.8]} 24. Ne2 {[%clk 0:00:38.5]} 24... Rfd8 {[%clk 0:01:47.1]} 25.
Rhd1 {[%clk 0:00:36.2]} 25... g5 {[%clk 0:01:42.6]} 26. Rxd8+ {[%clk 0:00:23.6]}
26... Rxd8 {[%clk 0:01:41.1]} 27. Bc1 {[%clk 0:00:23.1]} 27... c5 {[%clk
0:01:23.1]} 28. b3 {[%clk 0:00:20.5]} 28... axb3+ {[%clk 0:01:21.3]} 29. Kxb3
{[%clk 0:00:20.6]} 29... Rd3 {[%clk 0:01:09.7]} 30. f4 {[%clk 0:00:16.2]} 30...
g4 {[%clk 0:01:04.4]} 31. Kc2 {[%clk 0:00:14.7]} 31... Rf3 {[%clk 0:01:00.8]}
32. Ra7 {[%clk 0:00:12]} 32... Kg7 {[%clk 0:00:59.7]} 33. f5 {[%clk 0:00:10.1]}
33... Bf6 {[%clk 0:00:50.5]} 34. Bf4 {[%clk 0:00:06.1]} 34... Rf2 {[%clk
0:00:45.9]} 35. Kd3 {[%clk 0:00:05.4]} 35... Ne5+ {[%clk 0:00:36.4]} 36. Ke3
{[%clk 0:00:04.5]} 36... Rf3+ {[%clk 0:00:23]} 37. Kd2 {[%clk 0:00:03.8]} 37...
Nc4+ {[%clk 0:00:22.7]} 38. Kc2 {[%clk 0:00:01.5]} 38... Rf2 {[%clk 0:00:21.9]}
0-1